[Event "Titled Tuesday Blitz April 26 Early 2022"]
[White "Popadic, Dragan"]
[Black "Araujo Sanchez, Josue"]
[WhiteFideId "913650"]
[BlackFideId "6416896"]
[WhiteElo "2203"]
[BlackElo "2339"]
[Result "0-1"]
[Round "04"]
[TimeControl "180+1"]
[Date "2022.04.26"]
[WhiteClock "0:00:02"]
[BlackClock "0:00:47"]

1. e4 {[%clk 0:02:59]}  c5 {[%clk 0:02:57]} 2. Nc3 {[%clk 0:02:59]}  e6 {[%clk 0:02:57]} 3. d3 {[%clk 0:02:58]}  Nc6 {[%clk 0:02:56]} 4. g4 {[%clk 0:02:58]}  d5 {[%clk 0:02:55]} 5. Bg2 {[%clk 0:02:58]}  dxe4 {[%clk 0:02:42]} 6. Nxe4 {[%clk 0:02:57]}  h5 {[%clk 0:02:42]} 7. g5 {[%clk 0:02:57]}  Nge7 {[%clk 0:02:41]} 8. Nh3 {[%clk 0:02:56]}  e5 {[%clk 0:02:34]} 9. O-O {[%clk 0:02:55]}  Ng6 {[%clk 0:02:32]} 10. c3 {[%clk 0:02:52]}  Be7 {[%clk 0:02:29]} 11. f4 {[%clk 0:02:38]}  Nh4 {[%clk 0:02:28]} 12. f5 {[%clk 0:02:29]}  Bxf5 {[%clk 0:02:22]} 13. Nhf2 {[%clk 0:01:52]}  Nxg2 {[%clk 0:02:19]} 14. Kxg2 {[%clk 0:01:51]}  Qd5 {[%clk 0:02:18]} 15. Be3 {[%clk 0:01:40]}  O-O-O {[%clk 0:02:15]} 16. Qf3 {[%clk 0:01:37]}  Bg6 {[%clk 0:02:04]} 17. Rad1 {[%clk 0:01:33]}  Rhe8 {[%clk 0:01:59]} 18. Kg1 {[%clk 0:01:29]}  Kb8 {[%clk 0:01:53]} 19. Qg3 {[%clk 0:01:19]}  Ka8 {[%clk 0:01:48]} 20. a4 {[%clk 0:01:18]}  b6 {[%clk 0:01:42]} 21. Qg2 {[%clk 0:01:17]}  Kb8 {[%clk 0:01:40]} 22. Qg3 {[%clk 0:01:08]}  Qe6 {[%clk 0:01:30]} 23. d4 {[%clk 0:01:02]}  cxd4 {[%clk 0:01:27]} 24. cxd4 {[%clk 0:01:01]}  Kb7 {[%clk 0:01:27]} 25. dxe5 {[%clk 0:00:56]}  Qxe5 {[%clk 0:01:28]} 26. Qg2 {[%clk 0:00:53]}  Rxd1 {[%clk 0:01:21]} 27. Rxd1 {[%clk 0:00:51]}  Bb4 {[%clk 0:01:16]} 28. Rd4 {[%clk 0:00:25]}  Kb8 {[%clk 0:00:59]} 29. Rxb4 {[%clk 0:00:14]}  Nxb4 {[%clk 0:00:57]} 30. Bd2 {[%clk 0:00:06]}  Nd5 {[%clk 0:00:55]} 31. Ng3 {[%clk 0:00:03]}  h4 {[%clk 0:00:54]} 32. Nf1 {[%clk 0:00:02]}  Re6 {[%clk 0:00:50]} 33. Qf3 {[%clk 0:00:02]}  Re7 {[%clk 0:00:47]} 0-1


[Site "https://www.chess.com"]

[Event "Titled Tuesday Blitz April 26 Early 2022"]
[White "Prohorov, Olexandr"]
[Black "Piesik, Piotr"]
[WhiteFideId "14105578"]
[BlackFideId "1136194"]
[WhiteElo "1993"]
[BlackElo "2190"]
[Result "1/2-1/2"]
[Round "04"]
[TimeControl "180+1"]
[Date "2022.04.26"]
[WhiteClock "0:00:02"]
[BlackClock "0:00:07"]

1. e4 {[%clk 0:03:00]}  g6 {[%clk 0:02:57]} 2. d4 {[%clk 0:02:59]}  Bg7 {[%clk 0:02:57]} 3. Nc3 {[%clk 0:02:59]}  c6 {[%clk 0:02:58]} 4. Nf3 {[%clk 0:02:59]}  d6 {[%clk 0:02:58]} 5. h3 {[%clk 0:02:57]}  Nf6 {[%clk 0:02:58]} 6. Be2 {[%clk 0:02:56]}  O-O {[%clk 0:02:56]} 7. O-O {[%clk 0:02:55]}  Nbd7 {[%clk 0:02:57]} 8. a4 {[%clk 0:02:55]}  e5 {[%clk 0:02:57]} 9. a5 {[%clk 0:02:54]}  Re8 {[%clk 0:02:52]} 10. dxe5 {[%clk 0:02:46]}  Nxe5 {[%clk 0:02:52]} 11. Bf4 {[%clk 0:02:44]}  Qc7 {[%clk 0:02:49]} 12. Qd2 {[%clk 0:02:41]}  Be6 {[%clk 0:02:43]} 13. Rfd1 {[%clk 0:02:31]}  Rad8 {[%clk 0:02:43]} 14. Nd4 {[%clk 0:02:29]}  Bc4 {[%clk 0:02:35]} 15. Ra4 {[%clk 0:02:19]}  Bxe2 {[%clk 0:02:34]} 16. Ndxe2 {[%clk 0:02:18]}  Bf8 {[%clk 0:02:09]} 17. b3 {[%clk 0:02:02]}  Qc8 {[%clk 0:02:05]} 18. Qd4 {[%clk 0:01:51]}  a6 {[%clk 0:02:00]} 19. f3 {[%clk 0:01:43]}  Bg7 {[%clk 0:01:38]} 20. Qf2 {[%clk 0:01:36]}  d5 {[%clk 0:01:31]} 21. Ng3 {[%clk 0:01:29]}  dxe4 {[%clk 0:01:24]} 22. Ngxe4 {[%clk 0:01:27]}  Rxd1+ {[%clk 0:01:24]} 23. Nxd1 {[%clk 0:01:28]}  Nxe4 {[%clk 0:01:19]} 24. Rxe4 {[%clk 0:01:24]}  Nd7 {[%clk 0:01:19]} 25. Rxe8+ {[%clk 0:01:19]}  Qxe8 {[%clk 0:01:20]} 26. Qe3 {[%clk 0:01:20]}  Qxe3+ {[%clk 0:01:18]} 27. Nxe3 {[%clk 0:01:17]}  Bd4 {[%clk 0:01:15]} 28. Kf1 {[%clk 0:01:14]}  Bxe3 {[%clk 0:01:15]} 29. Bxe3 {[%clk 0:01:13]}  f6 {[%clk 0:01:10]} 30. Ke2 {[%clk 0:01:13]}  Kf7 {[%clk 0:01:11]} 31. Kd3 {[%clk 0:01:10]}  Ke6 {[%clk 0:01:11]} 32. Ke4 {[%clk 0:01:07]}  c5 {[%clk 0:01:07]} 33. Bd2 {[%clk 0:01:02]}  Nb8 {[%clk 0:01:06]} 34. Bc3 {[%clk 0:00:56]}  Nc6 {[%clk 0:01:05]} 35. Kf4 {[%clk 0:00:51]}  h5 {[%clk 0:01:01]} 36. g4 {[%clk 0:00:45]}  Ne7 {[%clk 0:00:53]} 37. Bd2 {[%clk 0:00:41]}  Nd5+ {[%clk 0:00:48]} 38. Ke4 {[%clk 0:00:38]}  f5+ {[%clk 0:00:42]} 39. gxf5+ {[%clk 0:00:38]}  gxf5+ {[%clk 0:00:43]} 40. Kd3 {[%clk 0:00:38]}  Kd6 {[%clk 0:00:41]} 41. c4 {[%clk 0:00:34]}  Ne7 {[%clk 0:00:40]} 42. Ke3 {[%clk 0:00:34]}  Ng6 {[%clk 0:00:35]} 43. Bc3 {[%clk 0:00:34]}  Ke6 {[%clk 0:00:31]} 44. f4 {[%clk 0:00:34]}  Kd6 {[%clk 0:00:24]} 45. Kf3 {[%clk 0:00:34]}  Kc6 {[%clk 0:00:23]} 46. Ke3 {[%clk 0:00:32]}  Nf8 {[%clk 0:00:20]} 47. Bh8 {[%clk 0:00:30]}  Ne6 {[%clk 0:00:20]} 48. Bf6 {[%clk 0:00:17]}  b5 {[%clk 0:00:15]} 49. axb6 {[%clk 0:00:10]}  Kxb6 {[%clk 0:00:15]} 50. Bc3 {[%clk 0:00:10]}  Kc6 {[%clk 0:00:16]} 51. Be5 {[%clk 0:00:06]}  Kd7 {[%clk 0:00:15]} 52. Bc3 {[%clk 0:00:05]}  Nd8 {[%clk 0:00:15]} 53. Bf6 {[%clk 0:00:05]}  Nc6 {[%clk 0:00:15]} 54. Bc3 {[%clk 0:00:05]}  Ke6 {[%clk 0:00:16]} 55. Kd3 {[%clk 0:00:04]}  Kd6 {[%clk 0:00:12]} 56. Ke3 {[%clk 0:00:04]}  Ne7 {[%clk 0:00:12]} 57. Kd3 {[%clk 0:00:04]}  Ng6 {[%clk 0:00:11]} 58. Ke3 {[%clk 0:00:04]}  Nh4 {[%clk 0:00:12]} 59. Kf2 {[%clk 0:00:02]}  Kc6 {[%clk 0:00:11]} 60. Kg3 {[%clk 0:00:02]}  Ng6 {[%clk 0:00:11]} 61. Kf3 {[%clk 0:00:01]}  Nf8 {[%clk 0:00:10]} 62. Ke3 {[%clk 0:00:01]}  Kb6 {[%clk 0:00:09]} 63. Kd3 {[%clk 0:00:01]}  Ne6 {[%clk 0:00:09]} 64. Ke3 {[%clk 0:00:01]}  Nc7 {[%clk 0:00:07]} 65. Be5 {[%clk 0:00:02]}  Ne6 {[%clk 0:00:07]} 66. Bc3 {[%clk 0:00:02]} 1/2-1/2


[Site "https://www.chess.com"]

[Event "Titled Tuesday Blitz April 26 Early 2022"]
[White "Richter, Nils"]
[Black "Johnson, Ben"]
[WhiteFideId "12990809"]
[BlackFideId "2010917"]
[WhiteElo "2243"]
[BlackElo "2177"]
[Result "1-0"]
[Round "04"]
[TimeControl "180+1"]
[Date "2022.04.26"]
[WhiteClock "0:00:26"]
[BlackClock "0:00:09"]

1. d4 {[%clk 0:03:00]}  Nf6 {[%clk 0:02:59]} 2. c4 {[%clk 0:03:01]}  e6 {[%clk 0:03:00]} 3. Nf3 {[%clk 0:03:01]}  d5 {[%clk 0:02:58]} 4. e3 {[%clk 0:03:02]}  Bb4+ {[%clk 0:02:56]} 5. Nbd2 {[%clk 0:02:58]}  O-O {[%clk 0:02:55]} 6. a3 {[%clk 0:02:57]}  Be7 {[%clk 0:02:55]} 7. b4 {[%clk 0:02:56]}  c6 {[%clk 0:02:49]} 8. Bb2 {[%clk 0:02:56]}  a5 {[%clk 0:02:47]} 9. b5 {[%clk 0:02:53]}  a4 {[%clk 0:02:42]} 10. Bd3 {[%clk 0:02:49]}  dxc4 {[%clk 0:02:37]} 11. Bxc4 {[%clk 0:02:44]}  cxb5 {[%clk 0:02:35]} 12. Bxb5 {[%clk 0:02:44]}  Bd7 {[%clk 0:02:35]} 13. Bxd7 {[%clk 0:02:44]}  Qxd7 {[%clk 0:02:34]} 14. O-O {[%clk 0:02:44]}  Nc6 {[%clk 0:02:32]} 15. Nc4 {[%clk 0:02:43]}  Ra6 {[%clk 0:02:08]} 16. Qd3 {[%clk 0:02:39]}  Qd5 {[%clk 0:01:59]} 17. Rfc1 {[%clk 0:02:33]}  Rd8 {[%clk 0:01:52]} 18. Nfd2 {[%clk 0:02:29]}  b5 {[%clk 0:01:46]} 19. e4 {[%clk 0:02:28]}  Nxe4 {[%clk 0:01:36]} 20. Nxe4 {[%clk 0:02:21]}  bxc4 {[%clk 0:01:34]} 21. Qxc4 {[%clk 0:02:20]}  f5 {[%clk 0:01:10]} 22. Qxa6 {[%clk 0:02:17]}  Nb8 {[%clk 0:00:53]} 23. Qc4 {[%clk 0:02:10]}  fxe4 {[%clk 0:00:51]} 24. Qxd5 {[%clk 0:02:08]}  exd5 {[%clk 0:00:51]} 25. Bc3 {[%clk 0:02:06]}  Nc6 {[%clk 0:00:49]} 26. g3 {[%clk 0:02:00]}  Kf7 {[%clk 0:00:49]} 27. Rcb1 {[%clk 0:01:58]}  Rd7 {[%clk 0:00:47]} 28. Rb5 {[%clk 0:01:54]}  Ke6 {[%clk 0:00:46]} 29. Kf1 {[%clk 0:01:51]}  Rc7 {[%clk 0:00:44]} 30. Ba5 {[%clk 0:01:48]}  Nxa5 {[%clk 0:00:39]} 31. Rxa5 {[%clk 0:01:48]}  Rc4 {[%clk 0:00:39]} 32. Ra6+ {[%clk 0:01:42]}  Kf5 {[%clk 0:00:39]} 33. Ke2 {[%clk 0:01:37]}  Rxd4 {[%clk 0:00:37]} 34. Rd1 {[%clk 0:01:38]}  Rxd1 {[%clk 0:00:35]} 35. Kxd1 {[%clk 0:01:39]}  Bxa3 {[%clk 0:00:34]} 36. Rxa4 {[%clk 0:01:40]}  Bc5 {[%clk 0:00:31]} 37. Ra5 {[%clk 0:01:33]}  Bxf2 {[%clk 0:00:30]} 38. Rxd5+ {[%clk 0:01:34]}  Kg6 {[%clk 0:00:29]} 39. Ke2 {[%clk 0:01:33]}  e3 {[%clk 0:00:22]} 40. Kf3 {[%clk 0:01:28]}  Kf6 {[%clk 0:00:22]} 41. h4 {[%clk 0:01:27]}  g6 {[%clk 0:00:20]} 42. Rb5 {[%clk 0:01:22]}  h5 {[%clk 0:00:18]} 43. Ra5 {[%clk 0:01:17]}  Ke6 {[%clk 0:00:18]} 44. Ra2 {[%clk 0:01:17]}  Kf6 {[%clk 0:00:18]} 45. Kf4 {[%clk 0:01:14]}  Ke6 {[%clk 0:00:15]} 46. Kg5 {[%clk 0:01:10]}  Kf7 {[%clk 0:00:14]} 47. Kf4 {[%clk 0:00:58]}  Kf6 {[%clk 0:00:09]} 48. Ra6+ {[%clk 0:00:55]}  Kf7 {[%clk 0:00:10]} 49. Kf3 {[%clk 0:00:54]}  Kg7 {[%clk 0:00:09]} 50. Re6 {[%clk 0:00:52]}  Kf7 {[%clk 0:00:09]} 51. Re4 {[%clk 0:00:52]}  Kf6 {[%clk 0:00:09]} 52. Kf4 {[%clk 0:00:51]}  Kf7 {[%clk 0:00:08]} 53. Kg5 {[%clk 0:00:50]}  Kg7 {[%clk 0:00:05]} 54. Re7+ {[%clk 0:00:48]}  Kf8 {[%clk 0:00:05]} 55. Kf6 {[%clk 0:00:34]}  Bxg3 {[%clk 0:00:05]} 56. Rxe3 {[%clk 0:00:33]}  Bxh4+ {[%clk 0:00:06]} 57. Kxg6 {[%clk 0:00:34]}  Be7 {[%clk 0:00:05]} 58. Kxh5 {[%clk 0:00:29]}  Ke8 {[%clk 0:00:06]} 59. Kg6 {[%clk 0:00:28]}  Kd7 {[%clk 0:00:07]} 60. Kf7 {[%clk 0:00:28]}  Bd6 {[%clk 0:00:07]} 61. Kf6 {[%clk 0:00:27]}  Kc8 {[%clk 0:00:07]} 62. Ke6 {[%clk 0:00:27]}  Bb8 {[%clk 0:00:07]} 63. Kd5 {[%clk 0:00:26]}  Kb7 {[%clk 0:00:08]} 64. Rb3+ {[%clk 0:00:26]}  Ka8 {[%clk 0:00:09]} 65. Kc6 {[%clk 0:00:27]}  Ka7 {[%clk 0:00:09]} 66. Ra3# {[%clk 0:00:26]} 1-0


[Site "https://www.chess.com"]

[Event "Titled Tuesday Blitz April 26 Early 2022"]
[White "Riehle, Marco"]
[Black "Svane, Frederik"]
[WhiteFideId "12904392"]
[BlackFideId "12923044"]
[WhiteElo "2462"]
[BlackElo "2459"]
[Result "0-1"]
[Round "04"]
[TimeControl "180+1"]
[Date "2022.04.26"]
[WhiteClock "0:00:05"]
[BlackClock "0:00:07"]

1. e4 {[%clk 0:03:00]}  c5 {[%clk 0:02:54]} 2. a3 {[%clk 0:03:00]}  g6 {[%clk 0:02:49]} 3. h4 {[%clk 0:02:59]}  h5 {[%clk 0:02:47]} 4. Nc3 {[%clk 0:02:58]}  Bg7 {[%clk 0:02:47]} 5. Bc4 {[%clk 0:02:58]}  Nc6 {[%clk 0:02:47]} 6. d3 {[%clk 0:02:58]}  e6 {[%clk 0:02:46]} 7. Bg5 {[%clk 0:02:57]}  Nge7 {[%clk 0:02:44]} 8. Qd2 {[%clk 0:02:55]}  f6 {[%clk 0:02:42]} 9. Bf4 {[%clk 0:02:54]}  d5 {[%clk 0:02:41]} 10. Ba2 {[%clk 0:02:54]}  d4 {[%clk 0:02:39]} 11. Nce2 {[%clk 0:02:52]}  e5 {[%clk 0:02:39]} 12. Bg3 {[%clk 0:02:47]}  Qd6 {[%clk 0:02:40]} 13. O-O-O {[%clk 0:02:44]}  Be6 {[%clk 0:02:40]} 14. Kb1 {[%clk 0:02:42]}  Bxa2+ {[%clk 0:02:39]} 15. Kxa2 {[%clk 0:02:42]}  Qe6+ {[%clk 0:02:39]} 16. Kb1 {[%clk 0:02:42]}  b5 {[%clk 0:02:35]} 17. f4 {[%clk 0:02:39]}  b4 {[%clk 0:02:29]} 18. a4 {[%clk 0:02:35]}  b3 {[%clk 0:02:19]} 19. fxe5 {[%clk 0:02:26]}  fxe5 {[%clk 0:02:01]} 20. Nf3 {[%clk 0:02:20]}  Bh6 {[%clk 0:01:34]} 21. Ng5 {[%clk 0:02:13]}  Bxg5 {[%clk 0:01:31]} 22. hxg5 {[%clk 0:02:14]}  Rf8 {[%clk 0:00:30]} 23. Rhf1 {[%clk 0:02:09]}  Kd7 {[%clk 0:00:30]} 24. Nc1 {[%clk 0:02:00]}  c4 {[%clk 0:00:11]} 25. dxc4 {[%clk 0:01:54]}  bxc2+ {[%clk 0:00:11]} 26. Qxc2 {[%clk 0:01:53]}  Nb4 {[%clk 0:00:11]} 27. Qb3 {[%clk 0:01:37]}  Nec6 {[%clk 0:00:08]} 28. Nd3 {[%clk 0:01:29]}  Nxd3 {[%clk 0:00:07]} 29. Qb7+ {[%clk 0:01:18]}  Kd6 {[%clk 0:00:07]} 30. Rxf8 {[%clk 0:01:18]}  Rxf8 {[%clk 0:00:07]} 31. Qg7 {[%clk 0:00:33]}  Rb8 {[%clk 0:00:04]} 32. Rxd3 {[%clk 0:00:29]}  Qxc4 {[%clk 0:00:04]} 33. Rf3 {[%clk 0:00:16]}  Re8 {[%clk 0:00:02]} 34. Rf6+ {[%clk 0:00:11]}  Kc5 {[%clk 0:00:02]} 35. Qxg6 {[%clk 0:00:07]}  Qd3+ {[%clk 0:00:03]} 36. Kc1 {[%clk 0:00:07]}  Qc4+ {[%clk 0:00:02]} 37. Kd1 {[%clk 0:00:08]}  Nb4 {[%clk 0:00:03]} 38. Rc6+ {[%clk 0:00:04]}  Nxc6 {[%clk 0:00:03]} 39. Qxe8 {[%clk 0:00:05]}  Qd3+ {[%clk 0:00:03]} 40. Ke1 {[%clk 0:00:05]}  Qxg3+ {[%clk 0:00:04]} 41. Kf1 {[%clk 0:00:05]}  Qxg5 {[%clk 0:00:04]} 42. Qc8 {[%clk 0:00:04]}  Qf4+ {[%clk 0:00:05]} 43. Kg1 {[%clk 0:00:05]}  Qxe4 {[%clk 0:00:05]} 44. b4+ {[%clk 0:00:04]}  Kxb4 {[%clk 0:00:05]} 45. a5 {[%clk 0:00:05]}  Nxa5 {[%clk 0:00:05]} 46. g4 {[%clk 0:00:06]}  Qxg4+ {[%clk 0:00:05]} 47. Qxg4 {[%clk 0:00:05]}  hxg4 {[%clk 0:00:06]} 48. Kh2 {[%clk 0:00:05]}  Nc4 {[%clk 0:00:07]} 0-1


[Site "https://www.chess.com"]

[Event "Titled Tuesday Blitz April 26 Early 2022"]
[White "Ronka, Erik"]
[Black "Manukian, Artak"]
[WhiteFideId "505080"]
[BlackFideId "13301373"]
[WhiteElo "2264"]
[BlackElo "2332"]
[Result "0-1"]
[Round "04"]
[TimeControl "180+1"]
[Date "2022.04.26"]
[WhiteClock "0:00:01"]
[BlackClock "0:00:04"]

1. d4 {[%clk 0:03:00]}  d5 {[%clk 0:02:57]} 2. Nf3 {[%clk 0:03:01]}  Nf6 {[%clk 0:02:56]} 3. g3 {[%clk 0:03:02]}  Bg4 {[%clk 0:02:54]} 4. Bg2 {[%clk 0:03:02]}  Nc6 {[%clk 0:02:53]} 5. c4 {[%clk 0:03:01]}  e6 {[%clk 0:02:53]} 6. Nc3 {[%clk 0:03:00]}  Bb4 {[%clk 0:02:52]} 7. a3 {[%clk 0:02:55]}  Bxc3+ {[%clk 0:02:52]} 8. bxc3 {[%clk 0:02:56]}  Ne4 {[%clk 0:02:52]} 9. Bd2 {[%clk 0:02:33]}  dxc4 {[%clk 0:02:43]} 10. O-O {[%clk 0:02:31]}  O-O {[%clk 0:02:42]} 11. Be1 {[%clk 0:02:24]}  Rb8 {[%clk 0:02:26]} 12. Ne5 {[%clk 0:02:11]}  Nxe5 {[%clk 0:02:15]} 13. Bxe4 {[%clk 0:02:10]}  Nd7 {[%clk 0:02:03]} 14. a4 {[%clk 0:02:00]}  Bh3 {[%clk 0:02:00]} 15. Bg2 {[%clk 0:02:00]}  Bxg2 {[%clk 0:01:58]} 16. Kxg2 {[%clk 0:02:01]}  Nf6 {[%clk 0:01:58]} 17. Qc2 {[%clk 0:01:52]}  c5 {[%clk 0:01:41]} 18. e3 {[%clk 0:01:47]}  h5 {[%clk 0:01:32]} 19. f3 {[%clk 0:01:41]}  Qd6 {[%clk 0:01:15]} 20. Bf2 {[%clk 0:01:37]}  Rfc8 {[%clk 0:01:00]} 21. e4 {[%clk 0:01:31]}  cxd4 {[%clk 0:00:59]} 22. Bxd4 {[%clk 0:01:27]}  e5 {[%clk 0:00:50]} 23. Bxa7 {[%clk 0:01:23]}  Ra8 {[%clk 0:00:50]} 24. Rfd1 {[%clk 0:01:20]}  Qc6 {[%clk 0:00:33]} 25. Be3 {[%clk 0:01:20]}  b5 {[%clk 0:00:29]} 26. a5 {[%clk 0:01:13]}  Nd7 {[%clk 0:00:20]} 27. Rd5 {[%clk 0:01:10]}  f6 {[%clk 0:00:18]} 28. Rad1 {[%clk 0:01:08]}  Nf8 {[%clk 0:00:18]} 29. Bb6 {[%clk 0:01:05]}  Qb7 {[%clk 0:00:12]} 30. Rxb5 {[%clk 0:01:04]}  Qa6 {[%clk 0:00:12]} 31. Rbd5 {[%clk 0:01:03]}  h4 {[%clk 0:00:11]} 32. Qa4 {[%clk 0:00:54]}  Qxb6 {[%clk 0:00:07]} 33. Rb5 {[%clk 0:00:05]}  Qe3 {[%clk 0:00:07]} 34. Qb4 {[%clk 0:00:05]}  h3+ {[%clk 0:00:07]} 35. Kxh3 {[%clk 0:00:05]}  Qxf3 {[%clk 0:00:07]} 36. Rb1 {[%clk 0:00:04]}  Ne6 {[%clk 0:00:06]} 37. Kh4 {[%clk 0:00:01]}  Kh7 {[%clk 0:00:04]} 38. Rb7 {[%clk 0:00:01]}  Rh8 {[%clk 0:00:04]} 0-1


[Site "https://www.chess.com"]

[Event "Titled Tuesday Blitz April 26 Early 2022"]
[White "Rosenberg, Evan S"]
[Black "Castellanos Hernandez, Emilio Au"]
[WhiteFideId "2019299"]
[BlackFideId "5114179"]
[WhiteElo "2345"]
[BlackElo "2021"]
[Result "1-0"]
[Round "04"]
[TimeControl "180+1"]
[Date "2022.04.26"]
[WhiteClock "0:01:57"]
[BlackClock "0:02:30"]

1. Nf3 {[%clk 0:03:00]}  Nf6 {[%clk 0:02:56]} 2. c4 {[%clk 0:03:00]}  c5 {[%clk 0:02:54]} 3. Nc3 {[%clk 0:02:54]}  Nc6 {[%clk 0:02:54]} 4. g3 {[%clk 0:02:54]}  g6 {[%clk 0:02:54]} 5. Bg2 {[%clk 0:02:55]}  Bg7 {[%clk 0:02:54]} 6. O-O {[%clk 0:02:55]}  O-O {[%clk 0:02:54]} 7. d4 {[%clk 0:02:56]}  cxd4 {[%clk 0:02:50]} 8. Nxd4 {[%clk 0:02:56]}  e5 {[%clk 0:02:47]} 9. Ndb5 {[%clk 0:02:52]}  a6 {[%clk 0:02:41]} 10. Nd6 {[%clk 0:02:51]}  Qe7 {[%clk 0:02:36]} 11. c5 {[%clk 0:02:48]}  Nd4 {[%clk 0:02:34]} 12. Bg5 {[%clk 0:02:35]}  h6 {[%clk 0:02:30]} 13. Nd5 {[%clk 0:02:34]}  Qe6 {[%clk 0:02:29]} 14. Bxf6 {[%clk 0:01:57]}  Bxf6 {[%clk 0:02:30]} 15. Nc7 {[%clk 0:01:57]} 1-0


[Site "https://www.chess.com"]

[Event "Titled Tuesday Blitz April 26 Early 2022"]
[White "Samaganova, Aleksandra"]
[Black "Simonovic, Miroslav"]
[WhiteFideId "13800221"]
[BlackFideId "919152"]
[WhiteElo "1859"]
[BlackElo "2043"]
[Result "0-1"]
[Round "04"]
[TimeControl "180+1"]
[Date "2022.04.26"]
[WhiteClock "0:00:02"]
[BlackClock "0:00:18"]

1. c4 {[%clk 0:03:00]}  c5 {[%clk 0:03:00]} 2. Nc3 {[%clk 0:02:57]}  Nc6 {[%clk 0:03:00]} 3. g3 {[%clk 0:02:46]}  g6 {[%clk 0:02:59]} 4. Bg2 {[%clk 0:02:44]}  Bg7 {[%clk 0:03:00]} 5. a3 {[%clk 0:02:33]}  d6 {[%clk 0:02:58]} 6. Rb1 {[%clk 0:02:28]}  a5 {[%clk 0:02:58]} 7. e3 {[%clk 0:02:26]}  e5 {[%clk 0:02:55]} 8. Nge2 {[%clk 0:02:26]}  Nge7 {[%clk 0:02:55]} 9. O-O {[%clk 0:02:25]}  O-O {[%clk 0:02:54]} 10. Nd5 {[%clk 0:02:21]}  Be6 {[%clk 0:02:38]} 11. Nec3 {[%clk 0:02:20]}  Rb8 {[%clk 0:02:17]} 12. Nxe7+ {[%clk 0:02:02]}  Nxe7 {[%clk 0:02:13]} 13. Nd5 {[%clk 0:01:57]}  b5 {[%clk 0:01:54]} 14. d3 {[%clk 0:01:43]}  f5 {[%clk 0:01:36]} 15. b4 {[%clk 0:01:09]}  bxc4 {[%clk 0:01:31]} 16. dxc4 {[%clk 0:01:06]}  axb4 {[%clk 0:01:24]} 17. axb4 {[%clk 0:01:03]}  e4 {[%clk 0:01:22]} 18. b5 {[%clk 0:00:57]}  Nxd5 {[%clk 0:01:09]} 19. cxd5 {[%clk 0:00:56]}  Bd7 {[%clk 0:01:09]} 20. Qa4 {[%clk 0:00:47]}  Qb6 {[%clk 0:01:09]} 21. Bd2 {[%clk 0:00:31]}  Bxb5 {[%clk 0:01:04]} 22. Qa3 {[%clk 0:00:22]}  Qa6 {[%clk 0:01:00]} 23. Qxa6 {[%clk 0:00:20]}  Bxa6 {[%clk 0:01:01]} 24. Rfc1 {[%clk 0:00:20]}  Bd3 {[%clk 0:00:58]} 25. Rxb8 {[%clk 0:00:20]}  Rxb8 {[%clk 0:00:59]} 26. Ba5 {[%clk 0:00:20]}  Rb1 {[%clk 0:00:55]} 27. Rxb1 {[%clk 0:00:19]}  Bxb1 {[%clk 0:00:56]} 28. Bf1 {[%clk 0:00:19]}  Ba2 {[%clk 0:00:55]} 29. Bc7 {[%clk 0:00:15]}  Be5 {[%clk 0:00:55]} 30. Be2 {[%clk 0:00:12]}  Bxd5 {[%clk 0:00:55]} 31. Bb5 {[%clk 0:00:11]}  Kf7 {[%clk 0:00:55]} 32. Kf1 {[%clk 0:00:11]}  Ke6 {[%clk 0:00:55]} 33. Ke2 {[%clk 0:00:12]}  Bb7 {[%clk 0:00:53]} 34. Kd2 {[%clk 0:00:11]}  d5 {[%clk 0:00:53]} 35. Bb6 {[%clk 0:00:11]}  Bd6 {[%clk 0:00:52]} 36. Kc3 {[%clk 0:00:10]}  g5 {[%clk 0:00:45]} 37. Bd8 {[%clk 0:00:10]}  h6 {[%clk 0:00:44]} 38. h4 {[%clk 0:00:09]}  f4 {[%clk 0:00:35]} 39. hxg5 {[%clk 0:00:08]}  hxg5 {[%clk 0:00:35]} 40. Bxg5 {[%clk 0:00:06]}  fxg3 {[%clk 0:00:35]} 41. fxg3 {[%clk 0:00:06]}  Bxg3 {[%clk 0:00:36]} 42. Be8 {[%clk 0:00:06]}  Be5+ {[%clk 0:00:35]} 43. Kc2 {[%clk 0:00:05]}  d4 {[%clk 0:00:34]} 44. exd4 {[%clk 0:00:04]}  cxd4 {[%clk 0:00:35]} 45. Bh5 {[%clk 0:00:04]}  e3 {[%clk 0:00:33]} 46. Bg4+ {[%clk 0:00:04]}  Kd6 {[%clk 0:00:32]} 47. Be2 {[%clk 0:00:04]}  Be4+ {[%clk 0:00:31]} 48. Kd1 {[%clk 0:00:04]}  Ke6 {[%clk 0:00:30]} 49. Bh6 {[%clk 0:00:05]}  Kf5 {[%clk 0:00:30]} 50. Ke1 {[%clk 0:00:05]}  Bf4 {[%clk 0:00:29]} 51. Bg7 {[%clk 0:00:05]}  d3 {[%clk 0:00:29]} 52. Bxd3 {[%clk 0:00:05]}  Bxd3 {[%clk 0:00:29]} 53. Bf8 {[%clk 0:00:05]}  Ke4 {[%clk 0:00:27]} 54. Bb4 {[%clk 0:00:05]}  e2 {[%clk 0:00:27]} 55. Kf2 {[%clk 0:00:04]}  Be3+ {[%clk 0:00:23]} 56. Ke1 {[%clk 0:00:05]}  Bf4 {[%clk 0:00:20]} 57. Kf2 {[%clk 0:00:05]}  Kd5 {[%clk 0:00:20]} 58. Ke1 {[%clk 0:00:05]}  Kc4 {[%clk 0:00:20]} 59. Ba5 {[%clk 0:00:05]}  Kb3 {[%clk 0:00:20]} 60. Kf2 {[%clk 0:00:05]}  Kc2 {[%clk 0:00:20]} 61. Ke1 {[%clk 0:00:05]}  Bg5 {[%clk 0:00:19]} 62. Kf2 {[%clk 0:00:05]}  Bd2 {[%clk 0:00:17]} 63. Bxd2 {[%clk 0:00:02]}  Kxd2 {[%clk 0:00:18]} 64. Kf3 {[%clk 0:00:02]}  e1=Q {[%clk 0:00:18]} 0-1


[Site "https://www.chess.com"]